[Event "Late-Titled-Tuesday-Blitz-March-19-2024"]
[Site "Chess.com"]
[Date "2024.03.19"]
[Round "3"]
[White "Yan_Dyomin2010"]
[Black "ahmedkandiliii"]
[Result "1-0"]
[WhiteElo "2733"]
[BlackElo "2512"]
[TimeControl "180+1"]
[EndTime "14:28:38 PDT"]
[Termination "Yan_Dyomin2010 won on time"]

1. e4 {[%clk 0:03:00.9]} 1... e5 {[%clk 0:02:59.4]} 2. Nc3 {[%clk 0:03:00.5]}
2... Nc6 {[%clk 0:02:59.7]} 3. Bc4 {[%clk 0:03:00.1]} 3... Nf6 {[%clk
0:02:59.8]} 4. d3 {[%clk 0:02:58.3]} 4... Na5 {[%clk 0:02:56.4]} 5. Nge2 {[%clk
0:02:57.5]} 5... Nxc4 {[%clk 0:02:56.3]} 6. dxc4 {[%clk 0:02:58.4]} 6... h6
{[%clk 0:02:49.3]} 7. O-O {[%clk 0:02:56.3]} 7... Bc5 {[%clk 0:02:49.1]} 8. b3
{[%clk 0:02:54.7]} 8... O-O {[%clk 0:02:48.7]} 9. Qd3 {[%clk 0:02:54.5]} 9... d6
{[%clk 0:02:46.2]} 10. Be3 {[%clk 0:02:53.2]} 10... Nd7 {[%clk 0:02:43.8]} 11.
Rad1 {[%clk 0:02:50.3]} 11... Bxe3 {[%clk 0:02:30.8]} 12. Qxe3 {[%clk
0:02:49.5]} 12... Nc5 {[%clk 0:02:31.4]} 13. Ng3 {[%clk 0:02:46.4]} 13... Be6
{[%clk 0:02:24.4]} 14. f3 {[%clk 0:02:35]} 14... Qe7 {[%clk 0:02:13.3]} 15. Nd5
{[%clk 0:02:33.8]} 15... Bxd5 {[%clk 0:02:12.9]} 16. cxd5 {[%clk 0:02:33.6]}
16... a5 {[%clk 0:02:12.9]} 17. a3 {[%clk 0:02:31]} 17... Qg5 {[%clk 0:02:05]}
18. Qxg5 {[%clk 0:02:22]} 18... hxg5 {[%clk 0:02:05.9]} 19. Ra1 {[%clk 0:02:18]}
19... g6 {[%clk 0:02:01.5]} 20. Ne2 {[%clk 0:02:16.8]} 20... f5 {[%clk
0:02:00.8]} 21. b4 {[%clk 0:02:12.1]} 21... axb4 {[%clk 0:01:54.5]} 22. axb4
{[%clk 0:02:13]} 22... Nd7 {[%clk 0:01:53.8]} 23. Nc3 {[%clk 0:02:09.4]} 23...
Kf7 {[%clk 0:01:30.1]} 24. Nb5 {[%clk 0:02:08.1]} 24... Ke7 {[%clk 0:01:28.7]}
25. Nxc7 {[%clk 0:02:04.5]} 25... Rxa1 {[%clk 0:01:27.9]} 26. Rxa1 {[%clk
0:02:05.4]} 26... Rc8 {[%clk 0:01:27.4]} 27. Ne6 {[%clk 0:02:05.6]} 27... Rxc2
{[%clk 0:01:26.7]} 28. Nxg5 {[%clk 0:02:04.1]} 28... Rb2 {[%clk 0:01:22.6]} 29.
Ra8 {[%clk 0:01:57.3]} 29... Rxb4 {[%clk 0:01:22.1]} 30. Rg8 {[%clk 0:01:55.3]}
30... Kf6 {[%clk 0:01:06.4]} 31. h4 {[%clk 0:01:49.1]} 31... Nc5 {[%clk
0:00:58]} 32. Rf8+ {[%clk 0:01:47.5]} 32... Ke7 {[%clk 0:00:56.2]} 33. Rf7+
{[%clk 0:01:45.6]} 33... Ke8 {[%clk 0:00:54.9]} 34. exf5 {[%clk 0:01:46]} 34...
gxf5 {[%clk 0:00:49.3]} 35. g3 {[%clk 0:01:30.2]} 35... Rb2 {[%clk 0:00:35.6]}
36. Rxf5 {[%clk 0:01:24.6]} 36... Nd3 {[%clk 0:00:32.6]} 37. h5 {[%clk
0:01:20.7]} 37... Rb1+ {[%clk 0:00:32.6]} 38. Kg2 {[%clk 0:01:18]} 38... Rb2+
{[%clk 0:00:32.7]} 39. Kh3 {[%clk 0:01:16]} 39... Rb1 {[%clk 0:00:32]} 40. g4
{[%clk 0:01:08.3]} 40... Nf4+ {[%clk 0:00:22.7]} 41. Kg3 {[%clk 0:01:07.1]}
41... Rg1+ {[%clk 0:00:14.1]} 42. Kh2 {[%clk 0:01:03.3]} 42... Rg2+ {[%clk
0:00:09]} 43. Kh1 {[%clk 0:01:02.8]} 43... Rc2 {[%clk 0:00:07.2]} 44. h6 {[%clk
0:00:54.1]} 44... Rc1+ {[%clk 0:00:07.2]} 45. Kh2 {[%clk 0:00:54.1]} 45... Rc2+
{[%clk 0:00:07.5]} 46. Kg1 {[%clk 0:00:54.8]} 46... Rc1+ {[%clk 0:00:06.3]} 47.
Kf2 {[%clk 0:00:52]} 47... Rc2+ {[%clk 0:00:06.6]} 48. Ke1 {[%clk 0:00:45.2]}
48... Rh2 {[%clk 0:00:06.2]} 49. h7 {[%clk 0:00:43.8]} 49... Nxd5 {[%clk
0:00:05]} 50. Rf7 {[%clk 0:00:41]} 50... Ne7 {[%clk 0:00:03.6]} 51. Rf6 {[%clk
0:00:37.8]} 51... Kd7 {[%clk 0:00:02.4]} 52. Rf8 {[%clk 0:00:38]} 52... b5
{[%clk 0:00:01.2]} 53. h8=Q {[%clk 0:00:37.8]} 1-0

[Event "Late-Titled-Tuesday-Blitz-March-19-2024"]
[Site "Chess.com"]
[Date "2024.03.19"]
[Round "3"]
[White "Quattroporte300"]
[Black "mac0504"]
[Result "0-1"]
[WhiteElo "2509"]
[BlackElo "2713"]
[TimeControl "180+1"]
[EndTime "14:28:38 PDT"]
[Termination "mac0504 won on time"]

1. e4 {[%clk 0:03:00.9]} 1... Nc6 {[%clk 0:03:00.2]} 2. d4 {[%clk 0:03:00.2]}
2... d5 {[%clk 0:03:00.8]} 3. e5 {[%clk 0:02:58.9]} 3... Bf5 {[%clk 0:03:01]} 4.
Nf3 {[%clk 0:02:58.5]} 4... Qd7 {[%clk 0:03:00.5]} 5. Bb5 {[%clk 0:02:58]} 5...
a6 {[%clk 0:03:00]} 6. Ba4 {[%clk 0:02:57.1]} 6... b5 {[%clk 0:03:00.1]} 7. Bb3
{[%clk 0:02:56.9]} 7... e6 {[%clk 0:02:56.4]} 8. c3 {[%clk 0:02:56.7]} 8... f6
{[%clk 0:02:55.9]} 9. Qe2 {[%clk 0:02:53.9]} 9... h6 {[%clk 0:02:43.1]} 10. Nbd2
{[%clk 0:02:49.5]} 10... g5 {[%clk 0:02:43.1]} 11. exf6 {[%clk 0:02:49.2]} 11...
Nxf6 {[%clk 0:02:43.4]} 12. Ne5 {[%clk 0:02:40.2]} 12... Nxe5 {[%clk 0:02:40]}
13. Qxe5 {[%clk 0:02:40.8]} 13... Bg7 {[%clk 0:02:39.2]} 14. Qe2 {[%clk
0:02:40.1]} 14... O-O {[%clk 0:02:37.7]} 15. O-O {[%clk 0:02:38.6]} 15... Rae8
{[%clk 0:02:30.5]} 16. Nf3 {[%clk 0:02:38.2]} 16... Ne4 {[%clk 0:02:28.7]} 17.
Bc2 {[%clk 0:02:28.5]} 17... c5 {[%clk 0:02:23.8]} 18. dxc5 {[%clk 0:02:23.6]}
18... Nxc5 {[%clk 0:02:23.3]} 19. Nd4 {[%clk 0:02:14.1]} 19... Bxc2 {[%clk
0:02:17.6]} 20. Qxc2 {[%clk 0:02:03.4]} 20... e5 {[%clk 0:02:16.5]} 21. Nb3
{[%clk 0:02:03.1]} 21... Ne6 {[%clk 0:02:12.8]} 22. Rd1 {[%clk 0:01:53]} 22...
Qf7 {[%clk 0:02:02.5]} 23. Be3 {[%clk 0:01:41]} 23... Nf4 {[%clk 0:01:56.9]} 24.
Qd2 {[%clk 0:01:34.1]} 24... Rd8 {[%clk 0:01:43.2]} 25. Nc5 {[%clk 0:01:23.5]}
25... Nxg2 {[%clk 0:01:39.8]} 26. Kxg2 {[%clk 0:01:19.2]} 26... d4 {[%clk
0:01:40.4]} 27. Kg1 {[%clk 0:01:01.1]} 27... Qf3 {[%clk 0:01:28]} 28. Re1 {[%clk
0:00:47.1]} 28... dxe3 {[%clk 0:01:23.9]} 29. Qxe3 {[%clk 0:00:46.3]} 29... Qxe3
{[%clk 0:01:20.3]} 30. Rxe3 {[%clk 0:00:28.9]} 30... Rd2 {[%clk 0:01:21.2]} 31.
Nd3 {[%clk 0:00:21.6]} 31... e4 {[%clk 0:01:18.5]} 32. Nc5 {[%clk 0:00:12.4]}
32... Rfxf2 {[%clk 0:01:15.1]} 33. Nxe4 {[%clk 0:00:11.6]} 33... Rg2+ {[%clk
0:01:15.7]} 34. Kf1 {[%clk 0:00:11.8]} 34... Rxb2 {[%clk 0:01:16.3]} 35. Rd1
{[%clk 0:00:08.1]} 35... Rxh2 {[%clk 0:01:15.3]} 36. Ng3 {[%clk 0:00:05.2]}
36... Rhf2+ {[%clk 0:01:07.2]} 37. Ke1 {[%clk 0:00:05.1]} 37... Rfc2 {[%clk
0:00:47.3]} 38. Re2 {[%clk 0:00:04.9]} 38... Bxc3+ {[%clk 0:00:46.4]} 39. Kf1
{[%clk 0:00:05.2]} 39... Rxe2 {[%clk 0:00:47.1]} 40. Nxe2 {[%clk 0:00:05.1]}
40... Be5 {[%clk 0:00:47.9]} 41. Rd5 {[%clk 0:00:04.7]} 41... Bf4 {[%clk
0:00:42.4]} 42. Nxf4 {[%clk 0:00:04.4]} 42... gxf4 {[%clk 0:00:43.3]} 43. a3
{[%clk 0:00:04.5]} 43... Rb3 {[%clk 0:00:43]} 44. a4 {[%clk 0:00:02.9]} 44...
bxa4 {[%clk 0:00:42.1]} 45. Ra5 {[%clk 0:00:03.4]} 45... a3 {[%clk 0:00:40.1]}
46. Rxa6 {[%clk 0:00:03.9]} 46... Kg7 {[%clk 0:00:40.1]} 47. Kf2 {[%clk
0:00:04.2]} 47... f3 {[%clk 0:00:39.2]} 48. Ra4 {[%clk 0:00:02.6]} 48... Kg6
{[%clk 0:00:38.5]} 49. Kg3 {[%clk 0:00:02.3]} 49... Kf5 {[%clk 0:00:36.7]} 50.
Ra5+ {[%clk 0:00:02.5]} 50... Ke4 {[%clk 0:00:37.1]} 51. Ra4+ {[%clk 0:00:02.7]}
51... Ke3 {[%clk 0:00:37.5]} 52. Ra7 {[%clk 0:00:01.5]} 52... Kd2 {[%clk
0:00:36.5]} 53. Kf2 {[%clk 0:00:01.6]} 53... Kc2 {[%clk 0:00:37]} 54. Ra6 {[%clk
0:00:01.3]} 54... Kb2 {[%clk 0:00:37.9]} 55. Rxh6 {[%clk 0:00:01.4]} 55... a2
{[%clk 0:00:38.5]} 56. Rh1 {[%clk 0:00:01.5]} 56... a1=Q {[%clk 0:00:39]} 0-1

[Event "Late-Titled-Tuesday-Blitz-March-19-2024"]
[Site "Chess.com"]
[Date "2024.03.19"]
[Round "3"]
[White "MalyDominator"]
[Black "Zampronha1971"]
[Result "0-1"]
[WhiteElo "2512"]
[BlackElo "2307"]
[TimeControl "180+1"]
[EndTime "14:28:40 PDT"]
[Termination "Zampronha1971 won on time"]

1. c4 {[%clk 0:03:00.9]} 1... Nf6 {[%clk 0:02:59.2]} 2. g3 {[%clk 0:02:56.4]}
2... e6 {[%clk 0:02:59.4]} 3. Bg2 {[%clk 0:02:55.5]} 3... d5 {[%clk 0:03:00]} 4.
Nf3 {[%clk 0:02:55.9]} 4... Be7 {[%clk 0:03:00.1]} 5. O-O {[%clk 0:02:56]} 5...
O-O {[%clk 0:03:00.8]} 6. b3 {[%clk 0:02:54.8]} 6... d4 {[%clk 0:02:58.7]} 7. e3
{[%clk 0:02:52.1]} 7... c5 {[%clk 0:02:58.8]} 8. exd4 {[%clk 0:02:51.9]} 8...
cxd4 {[%clk 0:02:59.7]} 9. d3 {[%clk 0:02:52.6]} 9... Nc6 {[%clk 0:03:00.3]} 10.
Bg5 {[%clk 0:02:52.2]} 10... h6 {[%clk 0:02:45.6]} 11. Bxf6 {[%clk 0:02:52]}
11... Bxf6 {[%clk 0:02:46.5]} 12. Re1 {[%clk 0:02:52.6]} 12... Re8 {[%clk
0:02:43.6]} 13. Nbd2 {[%clk 0:02:52.9]} 13... e5 {[%clk 0:02:41.6]} 14. Ne4
{[%clk 0:02:50.8]} 14... Bf5 {[%clk 0:02:38.4]} 15. c5 {[%clk 0:02:45]} 15...
Bxe4 {[%clk 0:02:36.8]} 16. Rxe4 {[%clk 0:02:44.6]} 16... Qa5 {[%clk 0:02:29.8]}
17. Qc1 {[%clk 0:02:35.8]} 17... Nb4 {[%clk 0:02:24.6]} 18. a3 {[%clk 0:02:09]}
18... Nxd3 {[%clk 0:02:21.6]} 19. Qc4 {[%clk 0:02:09.1]} 19... Qc3 {[%clk
0:01:58.2]} 20. Qxc3 {[%clk 0:01:28.5]} 20... dxc3 {[%clk 0:01:57.4]} 21. Rc4
{[%clk 0:01:09]} 21... e4 {[%clk 0:01:53.8]} 22. Ne1 {[%clk 0:01:08.7]} 22... c2
{[%clk 0:01:51.9]} 23. Nxc2 {[%clk 0:01:08.6]} 23... Bxa1 {[%clk 0:01:49]} 24.
Nxa1 {[%clk 0:01:09.5]} 24... f5 {[%clk 0:01:43.2]} 25. Nc2 {[%clk 0:01:05.8]}
25... Rac8 {[%clk 0:01:38.4]} 26. b4 {[%clk 0:01:05.4]} 26... Ne5 {[%clk
0:01:34.3]} 27. Rc3 {[%clk 0:01:04.5]} 27... a6 {[%clk 0:01:32.9]} 28. Ne3
{[%clk 0:01:01.5]} 28... Red8 {[%clk 0:01:31]} 29. Nxf5 {[%clk 0:00:33.6]} 29...
Rd1+ {[%clk 0:01:29.7]} 30. Bf1 {[%clk 0:00:34.2]} 30... Nf3+ {[%clk 0:01:29.6]}
31. Kg2 {[%clk 0:00:34.4]} 31... Ne1+ {[%clk 0:01:03.5]} 32. Kh3 {[%clk
0:00:20.1]} 32... Rf8 {[%clk 0:01:03.8]} 33. Bc4+ {[%clk 0:00:19.2]} 33... Kh7
{[%clk 0:01:02.9]} 34. Ne3 {[%clk 0:00:19.6]} 34... Rd4 {[%clk 0:00:51.1]} 35.
Bd5 {[%clk 0:00:12.1]} 35... Rxf2 {[%clk 0:00:48.3]} 36. Bxb7 {[%clk 0:00:12.4]}
36... Nf3 {[%clk 0:00:45.3]} 37. c6 {[%clk 0:00:12.1]} 37... h5 {[%clk
0:00:40.9]} 38. g4 {[%clk 0:00:11.2]} 38... h4 {[%clk 0:00:39.7]} 39. g5 {[%clk
0:00:10.6]} 39... Rxh2+ {[%clk 0:00:36.2]} 40. Kg4 {[%clk 0:00:11]} 40... Ne5+
{[%clk 0:00:29.7]} 41. Kf5 {[%clk 0:00:11.3]} 41... Nxc6 {[%clk 0:00:28.9]} 42.
Bxc6 {[%clk 0:00:11.4]} 42... Rd3 {[%clk 0:00:28.4]} 43. Rxd3 {[%clk 0:00:07]}
43... exd3 {[%clk 0:00:29.3]} 44. Bf3 {[%clk 0:00:06.6]} 44... Ra2 {[%clk
0:00:26.7]} 45. g6+ {[%clk 0:00:07]} 45... Kh8 {[%clk 0:00:25.4]} 46. Nd5 {[%clk
0:00:06.4]} 46... Rxa3 {[%clk 0:00:25]} 47. Ne7 {[%clk 0:00:06.3]} 47... d2
{[%clk 0:00:25]} 48. Be2 {[%clk 0:00:06.3]} 48... Ra1 {[%clk 0:00:24.8]} 49. Nc8
{[%clk 0:00:03.3]} 49... Re1 {[%clk 0:00:25.1]} 50. Nd6 {[%clk 0:00:01.5]} 50...
Rxe2 {[%clk 0:00:24.6]} 0-1

[Event "Late-Titled-Tuesday-Blitz-March-19-2024"]
[Site "Chess.com"]
[Date "2024.03.19"]
[Round "3"]
[White "emeli_chess"]
[Black "Navyblue1"]
[Result "1-0"]
[WhiteElo "2422"]
[BlackElo "2205"]
[TimeControl "180+1"]
[EndTime "14:28:40 PDT"]
[Termination "emeli_chess won by resignation"]

1. d4 {[%clk 0:03:00.9]} 1... Nf6 {[%clk 0:02:56.9]} 2. c4 {[%clk 0:03:00.8]}
2... g6 {[%clk 0:02:54.3]} 3. Nc3 {[%clk 0:03:00.8]} 3... Bg7 {[%clk 0:02:50.7]}
4. e4 {[%clk 0:03:00.5]} 4... d6 {[%clk 0:02:38.8]} 5. f3 {[%clk 0:03:00.4]}
5... O-O {[%clk 0:02:38.2]} 6. Be3 {[%clk 0:03:00.9]} 6... c5 {[%clk 0:02:36.5]}
7. Nge2 {[%clk 0:03:00.2]} 7... cxd4 {[%clk 0:02:34.7]} 8. Nxd4 {[%clk
0:02:59.9]} 8... Nc6 {[%clk 0:02:34.9]} 9. Be2 {[%clk 0:02:59]} 9... Nxd4 {[%clk
0:02:22.1]} 10. Bxd4 {[%clk 0:02:58.8]} 10... Nh5 {[%clk 0:02:15.5]} 11. Bxg7
{[%clk 0:02:51.9]} 11... Nxg7 {[%clk 0:02:05.9]} 12. Qd2 {[%clk 0:02:34.8]}
12... Be6 {[%clk 0:02:00.3]} 13. O-O {[%clk 0:02:32.4]} 13... Rc8 {[%clk
0:01:56.1]} 14. b3 {[%clk 0:02:30.7]} 14... Ne8 {[%clk 0:01:51.1]} 15. Rac1
{[%clk 0:02:27.2]} 15... Nf6 {[%clk 0:01:49.3]} 16. Qd4 {[%clk 0:02:20.2]} 16...
Qa5 {[%clk 0:01:28.9]} 17. a4 {[%clk 0:02:13.4]} 17... Nd7 {[%clk 0:01:25.6]}
18. Nd5 {[%clk 0:02:10.2]} 18... Bxd5 {[%clk 0:01:19]} 19. cxd5 {[%clk
0:02:09.1]} 19... Qb6 {[%clk 0:01:13.3]} 20. Qxb6 {[%clk 0:02:07.6]} 20... Nxb6
{[%clk 0:01:06.8]} 21. Kf2 {[%clk 0:02:06.4]} 21... Kg7 {[%clk 0:01:02.3]} 22.
Ke3 {[%clk 0:02:06]} 22... e6 {[%clk 0:00:56.8]} 23. a5 {[%clk 0:01:36.1]} 23...
Nd7 {[%clk 0:00:51.8]} 24. dxe6 {[%clk 0:01:36]} 24... fxe6 {[%clk 0:00:51.2]}
25. b4 {[%clk 0:01:36]} 25... Kf6 {[%clk 0:00:44.8]} 26. f4 {[%clk 0:01:27.3]}
26... Ke7 {[%clk 0:00:43.1]} 27. g3 {[%clk 0:01:26.1]} 27... Nf6 {[%clk
0:00:36.8]} 28. Kd4 {[%clk 0:01:20]} 28... Rc6 {[%clk 0:00:23.6]} 29. Bb5 {[%clk
0:01:11.8]} 29... Rcc8 {[%clk 0:00:23.4]} 30. Be2 {[%clk 0:01:05.8]} 30... Rc6
{[%clk 0:00:22.7]} 31. Rxc6 {[%clk 0:01:00]} 31... bxc6 {[%clk 0:00:22.4]} 32.
Rc1 {[%clk 0:01:00.1]} 32... Rb8 {[%clk 0:00:20.2]} 33. b5 {[%clk 0:00:39.2]}
33... cxb5 {[%clk 0:00:19.5]} 34. Rc7+ {[%clk 0:00:38.9]} 34... Nd7 {[%clk
0:00:20.1]} 35. Rxa7 {[%clk 0:00:38.3]} 35... b4 {[%clk 0:00:20.7]} 36. a6
{[%clk 0:00:34]} 36... b3 {[%clk 0:00:21]} 37. Rb7 {[%clk 0:00:31.3]} 37... b2
{[%clk 0:00:19.8]} 38. Bd3 {[%clk 0:00:30.3]} 38... Rxb7 {[%clk 0:00:18.9]} 39.
axb7 {[%clk 0:00:30.2]} 39... Kd8 {[%clk 0:00:19.3]} 40. Kc3 {[%clk 0:00:29]}
40... Kc7 {[%clk 0:00:19.6]} 41. Kxb2 {[%clk 0:00:29.2]} 41... Kxb7 {[%clk
0:00:20.3]} 42. Kc3 {[%clk 0:00:29.4]} 42... Nc5 {[%clk 0:00:20.6]} 43. Bc2
{[%clk 0:00:29]} 43... Kc6 {[%clk 0:00:20.9]} 44. Kd4 {[%clk 0:00:29.2]} 44...
h6 {[%clk 0:00:19.9]} 45. e5 {[%clk 0:00:28.5]} 45... g5 {[%clk 0:00:19.4]} 46.
fxg5 {[%clk 0:00:27.5]} 46... hxg5 {[%clk 0:00:19.3]} 47. h4 {[%clk 0:00:27.6]}
47... gxh4 {[%clk 0:00:19.1]} 48. gxh4 {[%clk 0:00:27.8]} 48... Kd7 {[%clk
0:00:19.1]} 49. h5 {[%clk 0:00:25.5]} 49... Nb7 {[%clk 0:00:18.1]} 50. h6 {[%clk
0:00:24.7]} 50... dxe5+ {[%clk 0:00:17.9]} 51. Kxe5 {[%clk 0:00:24.5]} 51... Nd6
{[%clk 0:00:18.5]} 52. Kf6 {[%clk 0:00:23.9]} 52... Ke8 {[%clk 0:00:18.4]} 53.
h7 {[%clk 0:00:22.1]} 53... Nf7 {[%clk 0:00:18.5]} 54. Bg6 {[%clk 0:00:22]}
54... Kf8 {[%clk 0:00:18.8]} 55. Bxf7 {[%clk 0:00:22.4]} 1-0

[Event "Late-Titled-Tuesday-Blitz-March-19-2024"]
[Site "Chess.com"]
[Date "2024.03.19"]
[Round "3"]
[White "TanitoluwaAps116"]
[Black "esrosenberg"]
[Result "1-0"]
[WhiteElo "2816"]
[BlackElo "2489"]
[TimeControl "180+1"]
[EndTime "14:28:42 PDT"]
[Termination "TanitoluwaAps116 won by checkmate"]

1. e4 {[%clk 0:03:00.9]} 1... e6 {[%clk 0:03:00]} 2. d4 {[%clk 0:03:00.3]} 2...
d5 {[%clk 0:03:00.6]} 3. exd5 {[%clk 0:03:01.2]} 3... exd5 {[%clk 0:03:00.8]} 4.
Nf3 {[%clk 0:03:02.1]} 4... Bd6 {[%clk 0:02:49.1]} 5. c4 {[%clk 0:03:01.6]} 5...
Nf6 {[%clk 0:02:45.6]} 6. c5 {[%clk 0:03:01.4]} 6... Be7 {[%clk 0:02:45]} 7. Bd3
{[%clk 0:03:02.3]} 7... b6 {[%clk 0:02:43.2]} 8. O-O {[%clk 0:02:59]} 8... bxc5
{[%clk 0:02:35.8]} 9. dxc5 {[%clk 0:02:59.9]} 9... O-O {[%clk 0:02:36.2]} 10.
Be3 {[%clk 0:02:44.9]} 10... Bg4 {[%clk 0:02:34.8]} 11. Nbd2 {[%clk 0:02:42.6]}
11... Nc6 {[%clk 0:02:28.7]} 12. Rc1 {[%clk 0:02:40.6]} 12... Re8 {[%clk
0:02:24.7]} 13. h3 {[%clk 0:02:39.5]} 13... Bh5 {[%clk 0:02:24.9]} 14. Bb5
{[%clk 0:02:36.5]} 14... d4 {[%clk 0:01:53.4]} 15. Bxc6 {[%clk 0:02:20.7]} 15...
dxe3 {[%clk 0:01:53.3]} 16. fxe3 {[%clk 0:02:21.2]} 16... Rb8 {[%clk 0:01:38.5]}
17. Bxe8 {[%clk 0:02:17.2]} 17... Qxe8 {[%clk 0:01:39.4]} 18. b3 {[%clk
0:02:06.1]} 18... Nd5 {[%clk 0:01:32.4]} 19. Qe1 {[%clk 0:01:59.8]} 19... Bf6
{[%clk 0:01:27.9]} 20. e4 {[%clk 0:01:46.8]} 20... Nb4 {[%clk 0:01:26.9]} 21.
Qg3 {[%clk 0:01:32.5]} 21... Nxa2 {[%clk 0:01:18.1]} 22. e5 {[%clk 0:01:18.9]}
22... Nxc1 {[%clk 0:01:09.6]} 23. Rxc1 {[%clk 0:01:07.8]} 23... Be7 {[%clk
0:01:06.4]} 24. Qf4 {[%clk 0:00:48]} 24... Rd8 {[%clk 0:00:58.4]} 25. Ne4 {[%clk
0:00:42.1]} 25... Bg6 {[%clk 0:00:58.7]} 26. b4 {[%clk 0:00:34.7]} 26... Qa4
{[%clk 0:00:53.1]} 27. Nc3 {[%clk 0:00:27.8]} 27... Qa3 {[%clk 0:00:48.3]} 28.
Nb5 {[%clk 0:00:25.8]} 28... Qd3 {[%clk 0:00:36.7]} 29. Nxc7 {[%clk 0:00:20.6]}
29... Be4 {[%clk 0:00:32]} 30. Rf1 {[%clk 0:00:14.3]} 30... Bg6 {[%clk
0:00:24.8]} 31. e6 {[%clk 0:00:13.4]} 31... fxe6 {[%clk 0:00:21]} 32. Nxe6
{[%clk 0:00:14.3]} 32... Re8 {[%clk 0:00:18.6]} 33. Ne5 {[%clk 0:00:13.2]} 33...
Qe4 {[%clk 0:00:13.3]} 34. Nxg6 {[%clk 0:00:10.4]} 34... Qxg6 {[%clk 0:00:11.7]}
35. Nc7 {[%clk 0:00:08.8]} 35... Rf8 {[%clk 0:00:11.7]} 36. Qc4+ {[%clk
0:00:08.1]} 36... Kh8 {[%clk 0:00:11.7]} 37. Rxf8+ {[%clk 0:00:08.7]} 37... Bxf8
{[%clk 0:00:11.9]} 38. Nd5 {[%clk 0:00:09.3]} 38... Qb1+ {[%clk 0:00:09.9]} 39.
Qf1 {[%clk 0:00:09.6]} 39... Qxf1+ {[%clk 0:00:08.4]} 40. Kxf1 {[%clk
0:00:10.5]} 40... a5 {[%clk 0:00:08.3]} 41. c6 {[%clk 0:00:09.4]} 41... Bd6
{[%clk 0:00:07.4]} 42. bxa5 {[%clk 0:00:09.7]} 42... Kg8 {[%clk 0:00:05.9]} 43.
a6 {[%clk 0:00:10.6]} 43... Bb8 {[%clk 0:00:05.6]} 44. a7 {[%clk 0:00:07.8]}
44... Bxa7 {[%clk 0:00:05.8]} 45. c7 {[%clk 0:00:08.7]} 45... h5 {[%clk
0:00:05.4]} 46. c8=Q+ {[%clk 0:00:09.6]} 46... Kh7 {[%clk 0:00:06.2]} 47. Qf5+
{[%clk 0:00:10.1]} 47... g6 {[%clk 0:00:06.9]} 48. Qf7+ {[%clk 0:00:10.4]} 48...
Kh6 {[%clk 0:00:07.7]} 49. Qxa7 {[%clk 0:00:11.3]} 49... Kg5 {[%clk 0:00:07.9]}
50. Qe3+ {[%clk 0:00:12.2]} 50... Kh4 {[%clk 0:00:08]} 51. Qf4# {[%clk
0:00:12.2]} 1-0

[Event "Late-Titled-Tuesday-Blitz-March-19-2024"]
[Site "Chess.com"]
[Date "2024.03.19"]
[Round "3"]
[White "SuanFernandes"]
[Black "Noki102"]
[Result "1-0"]
[WhiteElo "2327"]
[BlackElo "2583"]
[TimeControl "180+1"]
[EndTime "14:28:45 PDT"]
[Termination "SuanFernandes won by checkmate"]

1. d4 {[%clk 0:03:00.9]} 1... b6 {[%clk 0:03:00.9]} 2. Nf3 {[%clk 0:02:56.3]}
2... Bb7 {[%clk 0:03:01.3]} 3. c4 {[%clk 0:02:54.2]} 3... f5 {[%clk 0:03:00.5]}
4. Nc3 {[%clk 0:02:54.3]} 4... e6 {[%clk 0:03:00.6]} 5. g3 {[%clk 0:02:53.4]}
5... Nf6 {[%clk 0:02:59.1]} 6. Bg2 {[%clk 0:02:53.4]} 6... Be7 {[%clk
0:02:59.7]} 7. O-O {[%clk 0:02:53.8]} 7... O-O {[%clk 0:02:59.8]} 8. Qc2 {[%clk
0:02:53.6]} 8... d6 {[%clk 0:02:59.2]} 9. Rd1 {[%clk 0:02:53.9]} 9... Nbd7
{[%clk 0:02:59.2]} 10. d5 {[%clk 0:02:53.2]} 10... e5 {[%clk 0:02:58.5]} 11.
Qxf5 {[%clk 0:02:46.4]} 11... Nc5 {[%clk 0:02:46.7]} 12. Qc2 {[%clk 0:02:45]}
12... e4 {[%clk 0:02:35.9]} 13. Ng5 {[%clk 0:02:25.2]} 13... Ng4 {[%clk
0:02:03.5]} 14. Ngxe4 {[%clk 0:02:08.9]} 14... Ne5 {[%clk 0:01:28.4]} 15. b3
{[%clk 0:01:58.5]} 15... Bc8 {[%clk 0:01:27.7]} 16. h3 {[%clk 0:01:58.3]} 16...
Bf5 {[%clk 0:01:08.6]} 17. Qd2 {[%clk 0:01:40.7]} 17... Qe8 {[%clk 0:01:02.6]}
18. Nxc5 {[%clk 0:01:40.3]} 18... bxc5 {[%clk 0:01:00.1]} 19. f4 {[%clk
0:01:30.1]} 19... Nf7 {[%clk 0:00:44.5]} 20. e4 {[%clk 0:01:25.8]} 20... Bd7
{[%clk 0:00:43.7]} 21. Bb2 {[%clk 0:01:24.8]} 21... Bf6 {[%clk 0:00:42.9]} 22.
Ne2 {[%clk 0:01:19.4]} 22... Bxb2 {[%clk 0:00:37.8]} 23. Qxb2 {[%clk 0:01:20.3]}
23... a5 {[%clk 0:00:35.6]} 24. a4 {[%clk 0:01:08.8]} 24... Rb8 {[%clk
0:00:33.8]} 25. Qc2 {[%clk 0:01:08.8]} 25... Rb4 {[%clk 0:00:22.2]} 26. Nc3
{[%clk 0:01:08.6]} 26... Qb8 {[%clk 0:00:20.8]} 27. Nb5 {[%clk 0:01:08.6]} 27...
Bxb5 {[%clk 0:00:20.2]} 28. axb5 {[%clk 0:01:06.5]} 28... Qb6 {[%clk 0:00:19.8]}
29. Ra3 {[%clk 0:01:00.9]} 29... Ra8 {[%clk 0:00:18.5]} 30. Rda1 {[%clk
0:01:01.5]} 30... h6 {[%clk 0:00:10.3]} 31. Kh2 {[%clk 0:01:01.9]} 31... Kh8
{[%clk 0:00:08.9]} 32. Bf3 {[%clk 0:00:56.1]} 32... Kg8 {[%clk 0:00:07.3]} 33.
Bg4 {[%clk 0:00:51.2]} 33... Kh8 {[%clk 0:00:03.7]} 34. Qe2 {[%clk 0:00:48.8]}
34... Nd8 {[%clk 0:00:02.1]} 35. e5 {[%clk 0:00:48.5]} 35... dxe5 {[%clk
0:00:01.7]} 36. fxe5 {[%clk 0:00:49.4]} 36... a4 {[%clk 0:00:02.2]} 37. Rxa4
{[%clk 0:00:43.6]} 37... Raxa4 {[%clk 0:00:02.2]} 38. Rxa4 {[%clk 0:00:43.4]}
38... Rxa4 {[%clk 0:00:02.7]} 39. bxa4 {[%clk 0:00:44.3]} 39... h5 {[%clk
0:00:02.4]} 40. Bxh5 {[%clk 0:00:42.4]} 40... Qh6 {[%clk 0:00:02.8]} 41. e6
{[%clk 0:00:39.3]} 41... Nb7 {[%clk 0:00:01.5]} 42. e7 {[%clk 0:00:39.2]} 42...
Nd6 {[%clk 0:00:02]} 43. e8=Q+ {[%clk 0:00:39.2]} 43... Nxe8 {[%clk 0:00:02.6]}
44. Qxe8+ {[%clk 0:00:39.6]} 44... Kh7 {[%clk 0:00:03.3]} 45. Qg6+ {[%clk
0:00:39]} 45... Qxg6 {[%clk 0:00:02.7]} 46. Bxg6+ {[%clk 0:00:39.9]} 46... Kxg6
{[%clk 0:00:03.3]} 47. a5 {[%clk 0:00:40.8]} 47... Kf5 {[%clk 0:00:03.1]} 48. a6
{[%clk 0:00:41.7]} 48... c6 {[%clk 0:00:03.9]} 49. dxc6 {[%clk 0:00:41.9]} 49...
Kg5 {[%clk 0:00:03.2]} 50. c7 {[%clk 0:00:42]} 50... g6 {[%clk 0:00:04.1]} 51.
c8=Q {[%clk 0:00:41.2]} 51... Kh6 {[%clk 0:00:05]} 52. Qh8+ {[%clk 0:00:41.1]}
52... Kg5 {[%clk 0:00:05.1]} 53. h4+ {[%clk 0:00:41.6]} 53... Kg4 {[%clk
0:00:05.3]} 54. Qf6 {[%clk 0:00:38.1]} 54... g5 {[%clk 0:00:04.7]} 55. Qxg5+
{[%clk 0:00:37.9]} 55... Kf3 {[%clk 0:00:04.9]} 56. Qf4+ {[%clk 0:00:38.6]}
56... Ke2 {[%clk 0:00:05.1]} 57. a7 {[%clk 0:00:38.6]} 57... Kd3 {[%clk
0:00:06]} 58. a8=Q {[%clk 0:00:37.6]} 58... Kc2 {[%clk 0:00:06.9]} 59. Qa2+
{[%clk 0:00:37.7]} 59... Kc3 {[%clk 0:00:06]} 60. Qe3+ {[%clk 0:00:38]} 60...
Kb4 {[%clk 0:00:06.3]} 61. Qea3# {[%clk 0:00:38.2]} 1-0